Cogmind - Beta 14 @@@ ROGUE MODE // 2024.10.01 @ 14:34:19 Player: Jay Result: Self-destructed Performance ------------- Evolutions (2) 1000 Regions Visited (5) 1000 Robots Destroyed (33) 165 Value Destroyed (360) 360 Prototype IDs (1) 20 Alien Tech Used (0) 0 Bonus (-117) -117 TOTAL SCORE: 2428 Bonus ------- Friendly Fire -117 Cogmind --------- Core Integrity 499/550 Matter 265/300 Energy 176/200 System Corruption 0% Temperature Cool (67) Movement Flying (31) Location -8/Materials Parts ------- > --- POWER (2) -------- (None) > --- PROPULSION (4) --- Flight Unit Improved Flight Unit Improved Flight Unit Improved Flight Unit > --- UTILITY (3) ------ Heat Sink Small Battery Hardened Medium Armor Plating > --- WEAPON (2) ------- Beam Cannon > --- INVENTORY (5) ---- Carbon-fiber Leg Rocket Launcher Datajack Peak State ------------ > --- POWER ------------ Light Ion Engine > --- PROPULSION ------- Flight Unit Improved Flight Unit Improved Flight Unit Improved Flight Unit > --- UTILITY ---------- Heat Sink Seismic Detector Hardened Medium Armor Plating > --- WEAPON ----------- Beam Cannon > --- INVENTORY -------- Carbon-fiber Leg Rocket Launcher Datajack [Rating: 17] Favorites ----------- Power Light Ion Engine Engine Light Ion Engine Propulsion Improved Flight Unit Leg Aluminum Leg Hover Unit Hover Unit Flight Unit Improved Flight Unit Utility Seismic Detector Device Seismic Detector Storage Small Storage Unit Protection Hardened Medium Armor Plating Weapon Beam Cannon Energy Cannon Beam Cannon Ballistic Gun Assault Rifle Build | -11 -10 -10 -9 -9 -8 ------- Run | Yrd Mat Min Mat Min Mat Slots Evolved 4 | . . . 2 . 2 Power 1 | . . . . . 1 Propulsion 2 | . . . 1 . 1 Utility 1 | . . . 1 . . Weapon . | . . . . . . Parts Attached 26 | 7 5 . 11 . 3 Power 3 | 1 1 . 1 . . Engine 3 | 1 1 . 1 . . Core . | . . . . . . Reactor . | . . . . . . Propulsion 15 | 2 3 . 9 . 1 Treads . | . . . . . . Leg 3 | 2 1 . . . . Wheel . | . . . . . . Hover 4 | . . . 4 . . Flight 8 | . 2 . 5 . 1 Utility 5 | 2 . . 1 . 2 Device 2 | 1 . . 1 . . Storage 2 | 1 . . . . 1 Processor . | . . . . . . Hackware . | . . . . . . Protection 1 | . . . . . 1 Artifact . | . . . . . . Weapon 3 | 2 1 . . . . Energy Gun . | . . . . . . Energy Cannon 1 | . 1 . . . . Ballistic Gun 2 | 2 . . . . . Ballistic Cannon . | . . . . . . Launcher . | . . . . . . Special Weapon . | . . . . . . Impact Weapon . | . . . . . . Slashing Weapon . | . . . . . . Piercing Weapon . | . . . . . . Special Melee Weapon . | . . . . . . Unidentified Prototypes 1 | . 1 . . . . Parts Lost 3 | . . . 2 . 1 Power 2 | . . . 1 . 1 Propulsion 1 | . . . 1 . . Utility . | . . . . . . Weapon . | . . . . . . Highest Loss Streak 2 | . . . 2 . 1 To Critical Strikes . | . . . . . . Average Slot Usage (%) 76 | . 91 71 68 77 78 Engine 11 | . 14 14 7 11 8 Leg 3 | . 15 . . . . Hover 2 | . . . 10 . . Flight 23 | . 12 28 19 33 36 Device 15 | . 14 14 19 22 12 Storage 3 | . 8 . . . 5 Protection 1 | . . . . . 7 Energy Cannon 9 | . . 14 11 11 9 Ballistic Gun 6 | . 25 . . . . Peak Build Rating 17 | 7 11 10 13 13 17 Average Rating 10 | 5 8 9 9 13 16 On Entrance 8 | . 7 9 10 13 13 Naked Turns . | . . . . . . Heaviest Build 16 | 15 15 7 8 8 16 Greatest Support 20 | 20 20 10 18 15 19 Greatest Overweight (x) 2 | . 1 . 2 . . Average Overweight (x) . | . . . . . . Largest Inventory Capacity 8 | 8 8 5 5 5 5 Average Capacity 5 | 7 6 5 5 5 5 Most Carried 5 | 5 5 5 5 4 3 Average Carried 3 | . 1 4 4 4 3 Final Capacity 8 | 8 5 5 5 5 5 Final Carried 5 | . 5 5 4 4 3 Class Distribution -------------------- 82% | Mutant 17% | Sprinter Dominant Class ---------------- Mutant | -10/Materials Mutant | -10/Mines Mutant | -9/Materials Mutant | -9/Mines Sprinter | -8/Materials Resources | -11 -10 -10 -9 -9 -8 ----------- Run | Yrd Mat Min Mat Min Mat Matter Collected 643 | 278 102 128 135 . . Remotely . | . . . . . . Salvage Created 1269 | 168 229 545 269 . 58 Parts 75 | 15 15 30 9 . 6 Haulers Intercepted 1 | . . . 1 . . Recyclers Shooed 6 | 1 1 4 . . . Parts Field Recycled . | . . . . . . Retrieved Matter . | . . . . . . Parts Self-Destructed . | . . . . . . Prevented . | . . . . . . Kills | -11 -10 -10 -9 -9 -8 ------- Run | Yrd Mat Min Mat Min Mat Combat Hostiles Destroyed 10 | . 5 . 3 . 2 Guns 5 | . 5 . . . . Cannons 4 | . . . 2 . 2 Classes Destroyed 8 | 2 2 2 2 . . Worker 5 | . . 4 1 . . Builder 3 | . . 2 . . 1 Tunneler 6 | 4 . 2 . . . Hauler 1 | . . . 1 . . Recycler 7 | 1 1 4 1 . . Swarmer 5 | . 3 . . . 2 Grunt 4 | . 2 . 2 . . Sentry 1 | . . . 1 . . Thug 1 | . . 1 . . . Best Kill Streak 9 | 5 4 9 4 . 3 Combat Bots Only 3 | . 3 . 2 . 2 Max Kills in Single Turn 2 | 1 2 1 1 . 1 Gunslinging . | . . . . . . Exploded . | . . . . . . Melee . | . . . . . . Uniques/NPCs Destroyed . | . . . . . . Combat | -11 -10 -10 -9 -9 -8 -------- Run | Yrd Mat Min Mat Min Mat Hostile Shots Fired 70 | . 10 . 21 . 39 Missed 26 | . 6 . 7 . 13 Damage Taken 529 | . 35 . 194 . 300 Core 93 | . . . 42 . 51 Absorbed by Shields . | . . . . . . Core Remaining (%) 96 | 100 . 100 . 89 . Volleys Fired 120 | 9 12 39 26 . 34 Largest 2 | 2 2 1 1 . 1 Hottest 60 | 40 40 60 60 . 60 Shots Fired 141 | 18 24 39 26 . 34 Gun 42 | 18 24 . . . . Cannon 99 | . . 39 26 . 34 Launcher . | . . . . . . Special . | . . . . . . Kinetic 42 | 18 24 . . . . Thermal 99 | . . 39 26 . 34 Explosive . | . . . . . . Electromagnetic . | . . . . . . Robot Hit Streak 11 | 3 4 4 11 . 4 Robot Miss Streak 5 | 3 5 4 3 . 4 Penetration Max . | . . . . . . Secondary Targets . | . . . . . . Shots Hit Robots 74 | 8 10 22 21 . 13 Core Hits 40 | 6 11 12 7 . 4 Critical Kills 2 | . . 2 . . . Critical Parts Destroyed . | . . . . . . Critical Strikes 2 | . . 2 . . . Meltdown 2 | . . 2 . . . Melee Attacks . | . . . . . . Impact . | . . . . . . Slashing . | . . . . . . Piercing . | . . . . . . Sneak Attacks . | . . . . . . Combat Hostiles . | . . . . . . Follow-up Attacks . | . . . . . . Damage Inflicted 1301 | 117 135 407 365 . 277 Guns 252 | 117 135 . . . . Cannons 1049 | . . 407 365 . 277 Explosions . | . . . . . . Melee . | . . . . . . Ramming . | . . . . . . Kinetic 252 | 117 135 . . . . Thermal 1049 | . . 407 365 . 277 Explosive . | . . . . . . Electromagnetic . | . . . . . . Impact . | . . . . . . Slashing . | . . . . . . Piercing . | . . . . . . Highest Corruption . | . . . . . . Average Corruption . | . . . . . . Corruption Purged . | . . . . . . Corruption Blocked . | . . . . . . Overload Shots . | . . . . . . Overflow Damage . | . . . . . . Projectiles . | . . . . . . Explosions . | . . . . . . Melee . | . . . . . . Knockbacks . | . . . . . . Impact . | . . . . . . Kinetic . | . . . . . . Secondary . | . . . . . . Self-Inflicted Damage . | . . . . . . Shots . | . . . . . . Rammed . | . . . . . . Targets Rammed . | . . . . . . Kicked . | . . . . . . Crushed . | . . . . . . Highest Temperature 405 | . . 405 80 . 140 Average Temperature 108 | . . 188 31 . 41 Received Heat Transfer 150 | . 6 . 90 . 54 Effects 7 | . . 7 . . . Energy Bleed 3 | . . 3 . . . Interference 1 | . . 1 . . . Matter Decay 2 | . . 2 . . . Short Circuit 1 | . . 1 . . . Siege Activations . | . . . . . . Robots Corrupted . | . . . . . . Combat Hostiles . | . . . . . . Parts Fried . | . . . . . . Impact Corruptions . | . . . . . . Robots Melted 3 | . . 2 1 . . Combat Hostiles 1 | . . . 1 . . Parts Melted 11 | . . 8 3 . . Heat Transferred 2220 | . . 851 777 . 592 Parts Sabotaged . | . . . . . . Parts Stolen . | . . . . . . Parts Stripped . | . . . . . . Power Chain Reactions . | . . . . . . Alert | -11 -10 -10 -9 -9 -8 ------- Run | Yrd Mat Min Mat Min Mat Peak Influence 187 | 25 187 147 179 69 156 Initial 72 | . 16 72 57 69 26 Average 92 | 11 125 104 132 69 49 Maximum Alert Level . | . . . . . . Low Security (%) 100 | 100 100 100 100 100 100 Level 1 . | . . . . . . Level 2 . | . . . . . . Level 3 . | . . . . . . Level 4 . | . . . . . . Level 5 . | . . . . . . High Security . | . . . . . . Max Security . | . . . . . . Squads Dispatched 3 | . 2 . 1 . . Investigation 2 | . 1 . 1 . . Extermination . | . . . . . . Reinforcement 1 | . 1 . . . . Assault . | . . . . . . Garrison . | . . . . . . Intercept . | . . . . . . Searches Triggered . | . . . . . . Construction Impeded . | . . . . . . Haulers Reinforced . | . . . . . . Active Scanning Responses . | . . . . . . Cargo Convoy Interrupts . | . . . . . . Stealth | -11 -10 -10 -9 -9 -8 --------- Run | Yrd Mat Min Mat Min Mat Distress Signals 3 | . 1 . . . 2 Communications Jammed . | . . . . . . Distress Signals . | . . . . . . Times Spotted 21 | . 8 . 3 . 10 Peak Tracking Total 10 | . 4 . 2 . 10 Tactical Retreats 2 | . 1 . . . 1 Traps | -11 -10 -10 -9 -9 -8 ------- Run | Yrd Mat Min Mat Min Mat Traps Triggered . | . . . . . . Indirectly . | . . . . . . Trap Hack Attempts . | . . . . . . Triggered . | . . . . . . Disarmed . | . . . . . . Reprogrammed . | . . . . . . Reused . | . . . . . . Traps Extracted . | . . . . . . Installed . | . . . . . . Triggered . | . . . . . . Machines | -11 -10 -10 -9 -9 -8 ---------- Run | Yrd Mat Min Mat Min Mat Machines Disabled 1 | . . 1 . . . Max in Single Turn 1 | . . 1 . . . Machines Repaired . | . . . . . . Machines Dismantled . | . . . . . . Machines Sabotaged . | . . . . . . Overloaded Fab Kills . | . . . . . . Hacking | -11 -10 -10 -9 -9 -8 --------- Run | Yrd Mat Min Mat Min Mat Machines Accessed 5 | . 2 . 3 . . Terminals 4 | . 2 . 2 . . Fabricators . | . . . . . . Repair Stations . | . . . . . . Recycling Units 1 | . . . 1 . . Scanalyzers . | . . . . . . Garrison Access . | . . . . . . Total Hacks 13 | . 5 . 8 . . Successful 6 | . 2 . 4 . . Failed 7 | . 3 . 4 . . Catastrophic 1 | . . . 1 . . Database Lockouts . | . . . . . . Manual 5 | . 4 . 1 . . Terminals 12 | . 5 . 7 . . Fabricators . | . . . . . . Repair Stations . | . . . . . . Recycling Units 1 | . . . 1 . . Scanalyzers . | . . . . . . Garrison Access . | . . . . . . Terminal Hacks 5 | . 2 . 3 . . Record 1 | . . . 1 . . Robot Analysis 1 | . 1 . . . . Maintenance Status 1 | . . . 1 . . Security Status 1 | . . . 1 . . Zone Layout 1 | . 1 . . . . Fabricator Hacks . | . . . . . . Repair Station Hacks . | . . . . . . Recycling Unit Hacks 1 | . . . 1 . . Retrieve Components 1 | . . . 1 . . Scanalyzer . | . . . . . . Garrison Access Hacks . | . . . . . . Unauthorized Hacks . | . . . . . . Terminals . | . . . . . . Fabricators . | . . . . . . Repair Stations . | . . . . . . Recycling Units . | . . . . . . Scanalyzers . | . . . . . . Garrison Access . | . . . . . . Data Cores Recovered . | . . . . . . Used . | . . . . . . Hacking Detections 2 | . 1 . 1 . . Full Trace Events 2 | . 1 . 1 . . Feedback Events . | . . . . . . Feedback Blocked . | . . . . . . Robot Schematics Acquired . | . . . . . . Robots Built . | . . . . . . Authchips . | . . . . . . Time . | . . . . . . Total Robot Build Rating . | . . . . . . Part Schematics Acquired . | . . . . . . Parts Built . | . . . . . . Authchips . | . . . . . . Time . | . . . . . . Total Part Build Rating . | . . . . . . Parts Repaired . | . . . . . . Time . | . . . . . . Parts Recycled . | . . . . . . Recycled Matter . | . . . . . . Retrieved Matter . | . . . . . . Retrieved Components . | . . . . . . Parts Scanalyzed . | . . . . . . Part Schematics Acquired . | . . . . . . Parts Damaged . | . . . . . . Bothacking | -11 -10 -10 -9 -9 -8 ------------ Run | Yrd Mat Min Mat Min Mat Used RIF Installer . | . . . . . . Robots Hacked . | . . . . . . Non-combat . | . . . . . . Combat . | . . . . . . Robot Hacks Applied . | . . . . . . Relay Couplers Released . | . . . . . . Fabnet Peak Effective % . | . . . . . . Robots Rewired . | . . . . . . Allies Hacked . | . . . . . . Hacks Repelled . | . . . . . . Allies | -11 -10 -10 -9 -9 -8 -------- Run | Yrd Mat Min Mat Min Mat Total Allies . | . . . . . . Largest Group . | . . . . . . Highest-Rated Group . | . . . . . . Highest-Rated Ally . | . . . . . . Total Orders . | . . . . . . Ally Attacks . | . . . . . . Total Damage . | . . . . . . Kills . | . . . . . . Allies Corrupted . | . . . . . . Allies Melted 1 | . . 1 . . . Intel | -11 -10 -10 -9 -9 -8 ------- Run | Yrd Mat Min Mat Min Mat Robot Analysis Total 1 | . 1 . . . . Derelict Logs Recovered . | . . . . . . Drone Launches . | . . . . . . Drone Recoveries . | . . . . . . Exploration | -11 -10 -10 -9 -9 -8 ------------- Run | Yrd Mat Min Mat Min Mat Turns Passed 903 | 124 191 226 202 9 151 Spaces Moved 933 | 70 235 262 189 25 152 Core 43 | 26 . . 17 . . Treads . | . . . . . . Legs 99 | 44 55 . . . . Wheels . | . . . . . . Hover 24 | . . . 24 . . Flight 767 | . 180 262 148 25 152 Fastest Speed 31 | 50 37 37 34 34 31 Average Speed 47 | 94 57 37 46 34 31 Slowest Speed 190 | 120 190 37 150 34 31 Overloaded Moves . | . . . . . . Propulsion Burnouts . | . . . . . . Robots Hopped 2 | . 1 1 . . . Cave-ins Triggered . | . . . . . . Exploration Rate (%) 21 | 4 36 53 12 13 11 Regions Visited 5 Branch Regions 2 Pre-discovered Areas . | . . . . . . Known Exits Taken . | . . . . . . Unknown Exits Taken 5 | 1 1 1 1 1 . Scrap Searched . | . . . . . . Spaces Dug . | . . . . . . Terrain Destroyed . | . . . . . . Melee . | . . . . . . Projectile . | . . . . . . AOE . | . . . . . . Terrain Rammed . | . . . . . . Walls Destroyed . | . . . . . . Machines Disabled . | . . . . . . Actions | -11 -10 -10 -9 -9 -8 --------- Run | Yrd Mat Min Mat Min Mat Total 1243 | 109 264 351 275 24 220 Wait 143 | 19 6 48 39 . 31 Move 924 | 69 232 259 188 24 152 Hop 2 | . 1 1 . . . Pick Up 14 | 5 4 2 3 . . Fast Attach 10 | 2 1 . 6 . 1 Attach 7 | 5 . . 1 . 1 Detach 2 | . 1 . 1 . . Swap 9 | . 4 . 4 . 1 Drop 12 | . 3 2 7 . . Fire 120 | 9 12 39 26 . 34 Melee . | . . . . . . Ram . | . . . . . . Kick . | . . . . . . Crush . | . . . . . . Escape Stasis . | . . . . . . Rewire . | . . . . . . Trap . | . . . . . . Miscellaneous . | . . . . . . Route ------- -11/Scrapyard -10/Materials -10/Mines (discovered 2 exits: *Mat x2) -9/Materials -9/Mines -8/Materials History --------- Turn | Location | Event 3 | -11/Scrapyard | Discovered new exit (range 15) 125 | -11/Scrapyard | Entered Materials 312 | -10/Materials | Discovered new exit (range 11) 316 | -10/Materials | Entered Mines 321 | -10/Mines | Build established: Mutant 332 | -10/Mines | Received a Rocket Launcher from a helpful Derelict 427 | -10/Mines | Discovered new exit (range 7) 479 | -10/Mines | Discovered new exit (range 16) 542 | -10/Mines | Entered Materials 542 | -9/Materials | Evolved 2 slots: Propulsion x1, Utility x1 574 | -9/Materials | Discovered new exit (range 16) 744 | -9/Materials | Entered Mines 747 | -9/Mines | Found a hidden stash of uninstalled traps 748 | -9/Mines | Discovered new exit (range 16) 753 | -9/Mines | Entered Materials 753 | -8/Materials | Evolved 2 slots: Power x1, Propulsion x1 904 | -8/Materials | Self-destructed Last Messages --------------- Downloaded coordinate data. 00731_ ALERT: Suspicious activity at Terminal M004. Dispatching Investigation squad. 00742_ Acquired 40 matter. LOCATION=UNKNOWN GOAL=ESCAPE Something is scanning the area. 00747_ A stash of uninstalled traps is collected here! 00748_ EXIT=FOUND PARAMETERS=POWER+1,PROPULSION+1 LOCATION=UNKNOWN GOAL=ESCAPE 00782_ Acquired Hrd. Medium Armor Plating. 00813_ Acquired Sml. Battery. 00836_ W-25 Informer sends out distress signal. 00876_ U-05 Engineer destroyed. 00879_ K-01 Serf collects debris. 00892_ S-10 Pest destroyed. 00897_ Lgt. Ion Engine destroyed. 00902_ Critical hit (Burn: +37). Map ----- +----------------------------------------------------+ | ??????????# #?????????????? | | ??????????# #?????????????? | | ??????????# = #?????????????? | | ??????????# #?????????????? | | ??????????# #?????????????? | | ??????????# #?????????????? | | ??????????# #?????????????? | | ??????????# #?????????????? | | ??????????# #?????????????? | | ??????????#####+#############+#??? | | ???????????# ?? | | ???????????# ?? | | ???????????# ?? | | ???????????# ###############???? | | ???????????# #?????????????????? | | ???????????# #?????????????????? | | ???????????# #?????????????????? | | ???????????# #?????????????????? | | ???????????# #?????????????????? | | ???######### ##????????????????? | | ???# # #????????????????? | | ???# """s # #????????????????? | | ???# "R =*+ #????????????????? | | ???# """%%# #????????????????? | | ???# """gl# |= #????????????????? | | ???# s @###%###????????????????? | | ???########?#!#??????????????????? | | ?############ #??????????????????? | | ?# ## #??????????????????? | | ?# """ """ ## ##?????????????????? | | ?# """ """ # #?????????????????? | | ?# """ """ + #?????????????????? | | ?# # #?????????????????? | | ?# # #?????????????????? | | ?# [ # #?????????????????? | | ?# # #?????????????????? | | ?########### #?????????????????? | | ??????###### #?????????????????? | | ??????# #?????????????????? | | ??????# #### #?????????????????? | | ??????# #??# #?????????????????? | | ??????# #??# #?????????????????? | | ??????# #??# #?????????###?????? | | ??????# #??# #### ??? | | ????###+#### ??? | | ????#/ !# ??? | | ????# # ##?????? | | ????# """############ #??????? | | ????# """#??????????????#??????? | | ????#! """#?????????????????????? | +----------------------------------------------------+ Best States ------------- Heat Dissipation 41 Energy Generation 10 Energy Capacity 250 Matter Stores 300 Matter Capacity 300 Sight Range 16 Terrain Scan Density 10 Armor Coverage 225 Evasion (%) 63 Item Schematics ----------------- None Robot Schematics ------------------ None Fabricated ------------ Nothing Alien Tech Used ----------------- None Achievements -------------- None Challenges ------------ None Game ------ Seed HardcellCoolingComputer Manual? 0 Play Time 00:15:22 Cumulative 5.5 hours Start 2024.10.01 @ 14:20:35 End 2024.10.01 @ 14:34:19 Sessions 1 Manual Loads 0 Difficulty Rogue Special Mode None Game No. 20 Rogue 20 Adventurer 0 Explorer 0 Win Type - Total 0 Types 0/0/0/0/0/0/0/0/0 Lore% 4 Gallery% 12 Achievement% 14 Wizard Run 0 Options --------- Layout 0 ASCII 0 Keyboard 1 Movement Numpad Keybinds 0 Fullscreen 1 Font 18/CogNarrow Map View 76x50 Zoom Use 0% Tactical HUD 1 Map Filters NONE Filters NONE Steam 1 RUN: aff6f5a0-11ad-4bdf-9973-995f0a0d9c53